[Event "Titled Tuesday Blitz September 27 Late 2022"]
[White "Tari, Aryan"]
[Black "Navarrete Mendez, Gonzalo Alberto"]
[WhiteFideId "1510045"]
[BlackFideId "5106850"]
[WhiteElo "2612"]
[BlackElo "2261"]
[Result "1-0"]
[Round "04"]
[TimeControl "180+1"]
[Date "2022.09.27"]
[WhiteClock "0:01:43"]
[BlackClock "0:02:37"]

1. e4 {[%clk 0:02:56]}  e5 {[%clk 0:02:59]} 2. Nf3 {[%clk 0:02:56]}  Nc6 {[%clk 0:03:00]} 3. Bb5 {[%clk 0:02:56]}  a6 {[%clk 0:02:59]} 4. Ba4 {[%clk 0:02:55]}  d6 {[%clk 0:02:59]} 5. Bxc6+ {[%clk 0:02:49]}  bxc6 {[%clk 0:02:57]} 6. d4 {[%clk 0:02:50]}  f6 {[%clk 0:02:57]} 7. c4 {[%clk 0:02:46]}  g6 {[%clk 0:02:54]} 8. h3 {[%clk 0:02:45]}  Nh6 {[%clk 0:02:49]} 9. Nc3 {[%clk 0:02:44]}  Nf7 {[%clk 0:02:49]} 10. O-O {[%clk 0:02:43]}  Bg7 {[%clk 0:02:47]} 11. b3 {[%clk 0:02:08]}  O-O {[%clk 0:02:47]} 12. Be3 {[%clk 0:01:49]}  Qe7 {[%clk 0:02:46]} 13. Qd2 {[%clk 0:01:48]}  f5 {[%clk 0:02:43]} 14. exf5 {[%clk 0:01:46]}  gxf5 {[%clk 0:02:44]} 15. Rae1 {[%clk 0:01:45]}  e4 {[%clk 0:02:40]} 16. Nh2 {[%clk 0:01:43]}  Be6 {[%clk 0:02:37]} 1-0


[Site "https://www.chess.com"]

[Event "Titled Tuesday Blitz September 27 Late 2022"]
[White "Vasquez Schroeder, Rodrigo"]
[Black "Bortnyk, Olexandr"]
[WhiteFideId "3400042"]
[BlackFideId "14120828"]
[WhiteElo "2577"]
[BlackElo "2723"]
[Result "0-1"]
[Round "04"]
[TimeControl "180+1"]
[Date "2022.09.27"]
[WhiteClock "0:00:02"]
[BlackClock "0:00:23"]

1. d4 {[%clk 0:02:52]}  d6 {[%clk 0:03:00]} 2. Nf3 {[%clk 0:02:50]}  Nf6 {[%clk 0:03:00]} 3. g3 {[%clk 0:02:49]}  g6 {[%clk 0:03:00]} 4. Bg2 {[%clk 0:02:49]}  Bg7 {[%clk 0:03:01]} 5. O-O {[%clk 0:02:50]}  O-O {[%clk 0:03:01]} 6. c4 {[%clk 0:02:50]}  Bf5 {[%clk 0:03:01]} 7. Nc3 {[%clk 0:02:50]}  Ne4 {[%clk 0:03:02]} 8. Nd5 {[%clk 0:02:38]}  c6 {[%clk 0:03:01]} 9. Ne3 {[%clk 0:02:37]}  Be6 {[%clk 0:03:02]} 10. b3 {[%clk 0:02:36]}  f5 {[%clk 0:03:02]} 11. Bb2 {[%clk 0:02:29]}  Nd7 {[%clk 0:03:02]} 12. Nc2 {[%clk 0:02:28]}  a5 {[%clk 0:02:34]} 13. Nce1 {[%clk 0:02:11]}  a4 {[%clk 0:02:32]} 14. Nd3 {[%clk 0:02:06]}  a3 {[%clk 0:02:32]} 15. Bc1 {[%clk 0:02:06]}  h6 {[%clk 0:02:23]} 16. e3 {[%clk 0:01:46]}  g5 {[%clk 0:02:19]} 17. Nd2 {[%clk 0:01:38]}  d5 {[%clk 0:02:17]} 18. cxd5 {[%clk 0:01:23]}  cxd5 {[%clk 0:02:18]} 19. Nf3 {[%clk 0:01:23]}  Qb6 {[%clk 0:02:14]} 20. Bd2 {[%clk 0:01:16]}  Rfc8 {[%clk 0:02:10]} 21. Bb4 {[%clk 0:01:14]}  Bf6 {[%clk 0:01:59]} 22. Rc1 {[%clk 0:01:13]}  Qb5 {[%clk 0:01:57]} 23. Qe2 {[%clk 0:01:05]}  g4 {[%clk 0:01:52]} 24. Nd2 {[%clk 0:00:59]}  Bf7 {[%clk 0:01:46]} 25. Rfd1 {[%clk 0:00:57]}  Ng5 {[%clk 0:01:44]} 26. Bf1 {[%clk 0:00:55]}  Rc6 {[%clk 0:01:36]} 27. Rxc6 {[%clk 0:00:53]}  bxc6 {[%clk 0:01:37]} 28. Rc1 {[%clk 0:00:52]}  h5 {[%clk 0:01:34]} 29. Bc3 {[%clk 0:00:49]}  h4 {[%clk 0:01:33]} 30. Nf4 {[%clk 0:00:48]}  hxg3 {[%clk 0:01:24]} 31. hxg3 {[%clk 0:00:40]}  Qb7 {[%clk 0:01:21]} 32. Bg2 {[%clk 0:00:41]}  Kg7 {[%clk 0:01:19]} 33. f3 {[%clk 0:00:34]}  gxf3 {[%clk 0:01:20]} 34. Nxf3 {[%clk 0:00:35]}  Ne4 {[%clk 0:01:20]} 35. Nh4 {[%clk 0:00:29]}  Nxg3 {[%clk 0:01:19]} 36. Nxf5+ {[%clk 0:00:28]}  Nxf5 {[%clk 0:01:19]} 37. Qg4+ {[%clk 0:00:28]}  Kh8 {[%clk 0:01:11]} 38. Qxf5 {[%clk 0:00:22]}  Rg8 {[%clk 0:01:12]} 39. Kf2 {[%clk 0:00:21]}  Rg5 {[%clk 0:01:05]} 40. Rh1+ {[%clk 0:00:20]}  Kg8 {[%clk 0:01:05]} 41. Qh7+ {[%clk 0:00:18]}  Kf8 {[%clk 0:01:06]} 42. Qh6+ {[%clk 0:00:19]}  Ke8 {[%clk 0:01:03]} 43. Bh3 {[%clk 0:00:15]}  Nf8 {[%clk 0:00:57]} 44. Nd3 {[%clk 0:00:12]}  Rg6 {[%clk 0:00:41]} 45. Qf4 {[%clk 0:00:11]}  Bg5 {[%clk 0:00:41]} 46. Qh2 {[%clk 0:00:11]}  Rf6+ {[%clk 0:00:40]} 47. Ke2 {[%clk 0:00:11]}  Qb5 {[%clk 0:00:39]} 48. Kd2 {[%clk 0:00:06]}  Rf3 {[%clk 0:00:38]} 49. Re1 {[%clk 0:00:05]}  Bg6 {[%clk 0:00:37]} 50. Ne5 {[%clk 0:00:06]}  Bf4 {[%clk 0:00:23]} 51. Qg2 {[%clk 0:00:02]}  Bxe5 {[%clk 0:00:23]} 52. dxe5 {[%clk 0:00:02]}  Qd3+ {[%clk 0:00:23]} 0-1


[Site "https://www.chess.com"]

[Event "Titled Tuesday Blitz September 27 Late 2022"]
[White "Wagner, Dennis"]
[Black "Jobava, Baadur"]
[WhiteFideId "24650684"]
[BlackFideId "13601520"]
[WhiteElo "2355"]
[BlackElo "2582"]
[Result "0-1"]
[Round "04"]
[TimeControl "180+1"]
[Date "2022.09.27"]
[WhiteClock "0:00:03"]
[BlackClock "0:01:56"]

1. e4 {[%clk 0:03:00]}  e6 {[%clk 0:02:59]} 2. d4 {[%clk 0:02:59]}  d5 {[%clk 0:03:00]} 3. Nc3 {[%clk 0:02:59]}  dxe4 {[%clk 0:03:00]} 4. Nxe4 {[%clk 0:03:00]}  Bd7 {[%clk 0:03:01]} 5. Nf3 {[%clk 0:03:00]}  Bc6 {[%clk 0:03:01]} 6. Bd3 {[%clk 0:03:01]}  Nd7 {[%clk 0:03:02]} 7. O-O {[%clk 0:02:59]}  Ngf6 {[%clk 0:03:02]} 8. Ng3 {[%clk 0:02:57]}  g6 {[%clk 0:03:03]} 9. b3 {[%clk 0:02:57]}  Bg7 {[%clk 0:03:03]} 10. Ba3 {[%clk 0:02:57]}  Bf8 {[%clk 0:03:04]} 11. Bxf8 {[%clk 0:02:57]}  Kxf8 {[%clk 0:03:04]} 12. c4 {[%clk 0:02:55]}  Kg7 {[%clk 0:03:03]} 13. Re1 {[%clk 0:02:55]}  Bxf3 {[%clk 0:03:00]} 14. Qxf3 {[%clk 0:02:55]}  c6 {[%clk 0:03:01]} 15. a3 {[%clk 0:02:46]}  Qb6 {[%clk 0:03:00]} 16. b4 {[%clk 0:01:33]}  Qxd4 {[%clk 0:02:54]} 17. Qe2 {[%clk 0:01:19]}  Rhd8 {[%clk 0:02:43]} 18. Rad1 {[%clk 0:01:19]}  Qc3 {[%clk 0:02:35]} 19. h4 {[%clk 0:01:05]}  h5 {[%clk 0:02:33]} 20. Qe3 {[%clk 0:00:53]}  Qxa3 {[%clk 0:02:17]} 21. Qg5 {[%clk 0:00:51]}  Nf8 {[%clk 0:02:12]} 22. Bxg6 {[%clk 0:00:20]}  Nxg6 {[%clk 0:01:58]} 23. Rxd8 {[%clk 0:00:09]}  Rxd8 {[%clk 0:01:57]} 24. Nxh5+ {[%clk 0:00:08]}  Nxh5 {[%clk 0:01:58]} 25. Qxd8 {[%clk 0:00:08]}  Qxb4 {[%clk 0:01:58]} 26. Rc1 {[%clk 0:00:03]}  Nhf4 {[%clk 0:01:56]} 0-1


[Site "https://www.chess.com"]

[Event "Titled Tuesday Blitz September 27 Late 2022"]
[White "Wieczorek, Oskar"]
[Black "Wachinger, Guenther"]
[WhiteFideId "1133950"]
[BlackFideId "4604261"]
[WhiteElo "2302"]
[BlackElo "2212"]
[Result "1-0"]
[Round "04"]
[TimeControl "180+1"]
[Date "2022.09.27"]
[WhiteClock "0:00:04"]
[BlackClock "0:00:03"]

1. e4 {[%clk 0:03:00]}  c5 {[%clk 0:02:57]} 2. Nf3 {[%clk 0:03:01]}  d6 {[%clk 0:02:57]} 3. d4 {[%clk 0:03:01]}  cxd4 {[%clk 0:02:58]} 4. Nxd4 {[%clk 0:03:02]}  Nf6 {[%clk 0:02:58]} 5. Nc3 {[%clk 0:03:02]}  g6 {[%clk 0:02:59]} 6. Bc4 {[%clk 0:03:00]}  Bg7 {[%clk 0:02:56]} 7. O-O {[%clk 0:02:58]}  O-O {[%clk 0:02:57]} 8. h3 {[%clk 0:02:58]}  Nc6 {[%clk 0:02:57]} 9. Re1 {[%clk 0:02:57]}  Bd7 {[%clk 0:02:56]} 10. Bb3 {[%clk 0:02:55]}  a6 {[%clk 0:02:55]} 11. Be3 {[%clk 0:02:50]}  Rc8 {[%clk 0:02:54]} 12. Qd2 {[%clk 0:02:39]}  Re8 {[%clk 0:02:41]} 13. Rad1 {[%clk 0:02:37]}  Ne5 {[%clk 0:02:40]} 14. Bh6 {[%clk 0:02:30]}  Bh8 {[%clk 0:02:39]} 15. f4 {[%clk 0:02:25]}  Nc4 {[%clk 0:02:28]} 16. Bxc4 {[%clk 0:02:11]}  Rxc4 {[%clk 0:02:29]} 17. e5 {[%clk 0:02:11]}  Nh5 {[%clk 0:01:40]} 18. b3 {[%clk 0:01:46]}  Rc8 {[%clk 0:01:27]} 19. g4 {[%clk 0:01:32]}  Ng7 {[%clk 0:01:26]} 20. exd6 {[%clk 0:01:29]}  exd6 {[%clk 0:01:23]} 21. Nd5 {[%clk 0:01:08]}  Ne6 {[%clk 0:01:21]} 22. Nf3 {[%clk 0:01:02]}  Bc6 {[%clk 0:01:20]} 23. f5 {[%clk 0:00:54]}  Bxd5 {[%clk 0:01:15]} 24. Qxd5 {[%clk 0:00:53]}  Qb6+ {[%clk 0:01:01]} 25. Be3 {[%clk 0:00:47]}  Nc5 {[%clk 0:00:52]} 26. Qxd6 {[%clk 0:00:39]}  Qxd6 {[%clk 0:00:48]} 27. Rxd6 {[%clk 0:00:40]}  Ne4 {[%clk 0:00:49]} 28. Rd7 {[%clk 0:00:35]}  Rxc2 {[%clk 0:00:45]} 29. Bh6 {[%clk 0:00:22]}  Rcc8 {[%clk 0:00:14]} 30. Rxb7 {[%clk 0:00:22]}  Nc5 {[%clk 0:00:10]} 31. Rxe8+ {[%clk 0:00:23]}  Rxe8 {[%clk 0:00:11]} 32. Rc7 {[%clk 0:00:22]}  Nd3 {[%clk 0:00:09]} 33. Rc6 {[%clk 0:00:20]}  Nb4 {[%clk 0:00:08]} 34. Rb6 {[%clk 0:00:19]}  Nxa2 {[%clk 0:00:08]} 35. f6 {[%clk 0:00:19]}  Nc1 {[%clk 0:00:07]} 36. g5 {[%clk 0:00:19]}  a5 {[%clk 0:00:03]} 37. Kg2 {[%clk 0:00:17]}  Nd3 {[%clk 0:00:02]} 38. Rb5 {[%clk 0:00:16]}  Nf4+ {[%clk 0:00:01]} 39. Kg3 {[%clk 0:00:16]}  Ne2+ {[%clk 0:00:01]} 40. Kf2 {[%clk 0:00:16]}  Nc1 {[%clk 0:00:02]} 41. Nd4 {[%clk 0:00:15]}  Nd3+ {[%clk 0:00:02]} 42. Kf3 {[%clk 0:00:14]}  Ne5+ {[%clk 0:00:02]} 43. Kg2 {[%clk 0:00:14]}  Nd3 {[%clk 0:00:02]} 44. Rxa5 {[%clk 0:00:13]}  Nf4+ {[%clk 0:00:02]} 45. Kf3 {[%clk 0:00:12]}  Nh5 {[%clk 0:00:01]} 46. Rd5 {[%clk 0:00:11]}  Nxf6 {[%clk 0:00:01]} 47. gxf6 {[%clk 0:00:11]}  Bxf6 {[%clk 0:00:02]} 48. Be3 {[%clk 0:00:11]}  Rb8 {[%clk 0:00:02]} 49. Nb5 {[%clk 0:00:08]}  Bg7 {[%clk 0:00:02]} 50. Bf4 {[%clk 0:00:08]}  Rc8 {[%clk 0:00:02]} 51. Rd3 {[%clk 0:00:05]}  h6 {[%clk 0:00:02]} 52. Nd6 {[%clk 0:00:05]}  Rc6 {[%clk 0:00:01]} 53. b4 {[%clk 0:00:06]}  g5 {[%clk 0:00:02]} 54. Bg3 {[%clk 0:00:06]}  Rc2 {[%clk 0:00:02]} 55. Rb3 {[%clk 0:00:05]}  Rd2 {[%clk 0:00:01]} 56. b5 {[%clk 0:00:05]}  Bd4 {[%clk 0:00:01]} 57. b6 {[%clk 0:00:04]}  Bxb6 {[%clk 0:00:02]} 58. Rxb6 {[%clk 0:00:04]}  Rd3+ {[%clk 0:00:02]} 59. Kg2 {[%clk 0:00:04]}  h5 {[%clk 0:00:03]} 60. Bf2 {[%clk 0:00:04]}  h4 {[%clk 0:00:03]} 61. Ne4 {[%clk 0:00:04]}  Rd5 {[%clk 0:00:03]} 62. Nf6+ {[%clk 0:00:04]} 1-0


[Site "https://www.chess.com"]

[Event "Titled Tuesday Blitz September 27 Late 2022"]
[White "Ansh M Shah"]
[Black "Shandrygin, Nikita"]
[WhiteFideId "25033379"]
[BlackFideId "24198668"]
[WhiteElo "1819"]
[BlackElo "2323"]
[Result "0-1"]
[Round "05"]
[TimeControl "180+1"]
[Date "2022.09.28"]
[WhiteClock "0:00:09"]
[BlackClock "0:00:06"]

1. d4 {[%clk 0:03:00]}  Nf6 {[%clk 0:02:59]} 2. c4 {[%clk 0:03:01]}  e6 {[%clk 0:02:59]} 3. g3 {[%clk 0:02:59]}  d5 {[%clk 0:02:58]} 4. Bg2 {[%clk 0:03:00]}  Be7 {[%clk 0:02:58]} 5. Nf3 {[%clk 0:03:00]}  O-O {[%clk 0:02:58]} 6. O-O {[%clk 0:03:01]}  c6 {[%clk 0:02:57]} 7. Qc2 {[%clk 0:03:02]}  b6 {[%clk 0:02:56]} 8. Nbd2 {[%clk 0:03:02]}  Bb7 {[%clk 0:02:54]} 9. e4 {[%clk 0:03:02]}  dxe4 {[%clk 0:02:45]} 10. Nxe4 {[%clk 0:03:03]}  Nbd7 {[%clk 0:02:45]} 11. Bf4 {[%clk 0:03:02]}  c5 {[%clk 0:02:28]} 12. Nd6 {[%clk 0:02:11]}  Bxd6 {[%clk 0:01:52]} 13. Bxd6 {[%clk 0:02:12]}  Re8 {[%clk 0:01:52]} 14. Rfd1 {[%clk 0:02:00]}  Qc8 {[%clk 0:01:46]} 15. Ne5 {[%clk 0:01:30]}  Bxg2 {[%clk 0:01:41]} 16. Kxg2 {[%clk 0:01:31]}  Qb7+ {[%clk 0:01:40]} 17. Kg1 {[%clk 0:01:29]}  cxd4 {[%clk 0:00:53]} 18. Rxd4 {[%clk 0:01:25]}  Nxe5 {[%clk 0:00:46]} 19. Bxe5 {[%clk 0:01:26]}  Nd7 {[%clk 0:00:41]} 20. Bd6 {[%clk 0:01:01]}  Rac8 {[%clk 0:00:35]} 21. Rad1 {[%clk 0:00:51]}  e5 {[%clk 0:00:25]} 22. Rd5 {[%clk 0:00:47]}  f6 {[%clk 0:00:25]} 23. Qb3 {[%clk 0:00:37]}  Qc6 {[%clk 0:00:15]} 24. Ba3 {[%clk 0:00:31]}  Nf8 {[%clk 0:00:10]} 25. Bxf8 {[%clk 0:00:25]}  Rxf8 {[%clk 0:00:09]} 26. c5 {[%clk 0:00:25]}  Kh8 {[%clk 0:00:09]} 27. cxb6 {[%clk 0:00:25]}  Qxb6 {[%clk 0:00:08]} 28. Qxb6 {[%clk 0:00:24]}  axb6 {[%clk 0:00:09]} 29. Rb5 {[%clk 0:00:24]}  Rc6 {[%clk 0:00:08]} 30. Rd2 {[%clk 0:00:23]}  h6 {[%clk 0:00:07]} 31. h4 {[%clk 0:00:22]}  Rfc8 {[%clk 0:00:07]} 32. Kf1 {[%clk 0:00:21]}  Kh7 {[%clk 0:00:07]} 33. Ke2 {[%clk 0:00:21]}  Kg6 {[%clk 0:00:07]} 34. a4 {[%clk 0:00:19]}  h5 {[%clk 0:00:07]} 35. Rb4 {[%clk 0:00:18]}  Rc4 {[%clk 0:00:07]} 36. Rxc4 {[%clk 0:00:15]}  Rxc4 {[%clk 0:00:08]} 37. b3 {[%clk 0:00:15]}  Rb4 {[%clk 0:00:08]} 38. Rd3 {[%clk 0:00:14]}  Re4+ {[%clk 0:00:06]} 39. Re3 {[%clk 0:00:14]}  Rd4 {[%clk 0:00:06]} 40. Rd3 {[%clk 0:00:13]}  Re4+ {[%clk 0:00:07]} 41. Kd2 {[%clk 0:00:13]}  Kf5 {[%clk 0:00:06]} 42. Kc3 {[%clk 0:00:13]}  Re1 {[%clk 0:00:06]} 43. Rd2 {[%clk 0:00:12]}  e4 {[%clk 0:00:05]} 44. Rb2 {[%clk 0:00:11]}  Kg4 {[%clk 0:00:05]} 45. Kb4 {[%clk 0:00:11]}  Kf3 {[%clk 0:00:05]} 46. Kb5 {[%clk 0:00:11]}  Re2 {[%clk 0:00:05]} 47. Rxe2 {[%clk 0:00:09]}  Kxe2 {[%clk 0:00:05]} 48. Kxb6 {[%clk 0:00:09]}  Kxf2 {[%clk 0:00:06]} 49. a5 {[%clk 0:00:10]}  e3 {[%clk 0:00:07]} 50. a6 {[%clk 0:00:11]}  e2 {[%clk 0:00:08]} 51. a7 {[%clk 0:00:12]}  e1=Q {[%clk 0:00:09]} 52. a8=Q {[%clk 0:00:12]}  Qe3+ {[%clk 0:00:07]} 53. Kc7 {[%clk 0:00:12]}  Qxb3 {[%clk 0:00:07]} 54. Qf8 {[%clk 0:00:11]}  Qxg3+ {[%clk 0:00:07]} 55. Kd7 {[%clk 0:00:11]}  Kg2 {[%clk 0:00:06]} 56. Ke6 {[%clk 0:00:11]}  Kh3 {[%clk 0:00:06]} 57. Kf7 {[%clk 0:00:10]}  Kxh4 {[%clk 0:00:06]} 58. Qd6 {[%clk 0:00:09]}  Qxd6 {[%clk 0:00:06]} 0-1


[Site "https://www.chess.com"]

[Event "Titled Tuesday Blitz September 27 Late 2022"]
[White "Babazada, Khazar"]
[Black "Sokolovsky, Yahli"]
[WhiteFideId "13413554"]
[BlackFideId "2820242"]
[WhiteElo "2409"]
[BlackElo "1920"]
[Result "1-0"]
[Round "05"]
[TimeControl "180+1"]
[Date "2022.09.27"]
[WhiteClock "0:01:33"]
[BlackClock "0:00:03"]

1. Nf3 {[%clk 0:03:00]}  d5 {[%clk 0:02:53]} 2. g3 {[%clk 0:02:58]}  Bg4 {[%clk 0:02:51]} 3. Bg2 {[%clk 0:02:57]}  e6 {[%clk 0:02:47]} 4. O-O {[%clk 0:02:54]}  Nf6 {[%clk 0:02:47]} 5. b3 {[%clk 0:02:51]}  Bd6 {[%clk 0:02:42]} 6. Bb2 {[%clk 0:02:51]}  Nbd7 {[%clk 0:02:43]} 7. d3 {[%clk 0:02:51]}  O-O {[%clk 0:02:42]} 8. Nbd2 {[%clk 0:02:51]}  c5 {[%clk 0:02:35]} 9. e4 {[%clk 0:02:51]}  d4 {[%clk 0:02:36]} 10. h3 {[%clk 0:02:49]}  Bxf3 {[%clk 0:02:33]} 11. Bxf3 {[%clk 0:02:50]}  e5 {[%clk 0:02:23]} 12. a4 {[%clk 0:02:48]}  Ne8 {[%clk 0:02:22]} 13. Nc4 {[%clk 0:02:48]}  Bc7 {[%clk 0:02:23]} 14. Bg2 {[%clk 0:02:48]}  Nd6 {[%clk 0:02:23]} 15. f4 {[%clk 0:02:44]}  Nxc4 {[%clk 0:02:10]} 16. bxc4 {[%clk 0:02:45]}  Rb8 {[%clk 0:01:33]} 17. Bc1 {[%clk 0:02:42]}  Bd6 {[%clk 0:01:07]} 18. f5 {[%clk 0:02:41]}  Be7 {[%clk 0:01:07]} 19. h4 {[%clk 0:02:36]}  Rc8 {[%clk 0:01:01]} 20. Bh3 {[%clk 0:02:31]}  Rc6 {[%clk 0:01:01]} 21. Bd2 {[%clk 0:02:24]}  Bf6 {[%clk 0:00:52]} 22. Kg2 {[%clk 0:02:23]}  Qe7 {[%clk 0:00:52]} 23. Rh1 {[%clk 0:02:22]}  Rfc8 {[%clk 0:00:51]} 24. Qc1 {[%clk 0:02:20]}  Rb8 {[%clk 0:00:45]} 25. Bg4 {[%clk 0:02:20]}  a6 {[%clk 0:00:44]} 26. Be2 {[%clk 0:02:19]}  b5 {[%clk 0:00:44]} 27. axb5 {[%clk 0:02:17]}  axb5 {[%clk 0:00:45]} 28. cxb5 {[%clk 0:02:18]}  Rxb5 {[%clk 0:00:45]} 29. g4 {[%clk 0:02:19]}  Qd8 {[%clk 0:00:41]} 30. g5 {[%clk 0:02:17]}  Be7 {[%clk 0:00:42]} 31. h5 {[%clk 0:02:15]}  h6 {[%clk 0:00:32]} 32. gxh6 {[%clk 0:02:05]}  gxh6 {[%clk 0:00:32]} 33. Bxh6 {[%clk 0:02:05]}  Kh7 {[%clk 0:00:30]} 34. Bd2 {[%clk 0:02:01]}  Nf6 {[%clk 0:00:18]} 35. Kf3 {[%clk 0:02:00]}  Qd7 {[%clk 0:00:12]} 36. Qg1 {[%clk 0:01:59]}  Rb8 {[%clk 0:00:12]} 37. Qh2 {[%clk 0:01:54]}  Rb2 {[%clk 0:00:10]} 38. Rag1 {[%clk 0:01:36]}  Rc8 {[%clk 0:00:08]} 39. Rg6 {[%clk 0:01:33]}  Rxc2 {[%clk 0:00:03]} 40. Rh6+ {[%clk 0:01:32]}  Kg8 {[%clk 0:00:03]} 41. Qg3+ {[%clk 0:01:33]} 1-0


[Site "https://www.chess.com"]

[Event "Titled Tuesday Blitz September 27 Late 2022"]
[White "Barria Zuniga, Daniel"]
[Black "Vasquez Schroeder, Rodrigo"]
[WhiteFideId "3400816"]
[BlackFideId "3400042"]
[WhiteElo "2414"]
[BlackElo "2577"]
[Result "0-1"]
[Round "05"]
[TimeControl "180+1"]
[Date "2022.09.27"]
[WhiteClock "0:00:03"]
[BlackClock "0:00:25"]

1. d4 {[%clk 0:03:00]}  Nf6 {[%clk 0:02:56]} 2. c4 {[%clk 0:03:01]}  e6 {[%clk 0:02:54]} 3. Nf3 {[%clk 0:03:00]}  Bb4+ {[%clk 0:02:51]} 4. Nbd2 {[%clk 0:03:01]}  b6 {[%clk 0:02:47]} 5. g3 {[%clk 0:03:00]}  Bb7 {[%clk 0:02:48]} 6. Bg2 {[%clk 0:03:01]}  O-O {[%clk 0:02:48]} 7. O-O {[%clk 0:03:01]}  Bxd2 {[%clk 0:02:46]} 8. Qxd2 {[%clk 0:03:01]}  d6 {[%clk 0:02:43]} 9. b3 {[%clk 0:03:01]}  Nbd7 {[%clk 0:02:42]} 10. Bb2 {[%clk 0:03:01]}  Qe7 {[%clk 0:02:43]} 11. Rad1 {[%clk 0:03:00]}  Ne4 {[%clk 0:02:36]} 12. Qc2 {[%clk 0:02:58]}  f5 {[%clk 0:02:37]} 13. d5 {[%clk 0:02:58]}  e5 {[%clk 0:02:24]} 14. Nh4 {[%clk 0:02:58]}  g6 {[%clk 0:02:24]} 15. Bxe4 {[%clk 0:02:56]}  fxe4 {[%clk 0:02:25]} 16. Qxe4 {[%clk 0:02:57]}  Nc5 {[%clk 0:02:21]} 17. Qe3 {[%clk 0:02:55]}  Rae8 {[%clk 0:02:07]} 18. b4 {[%clk 0:02:48]}  Nd7 {[%clk 0:02:05]} 19. f3 {[%clk 0:02:24]}  a5 {[%clk 0:01:43]} 20. a3 {[%clk 0:02:23]}  axb4 {[%clk 0:01:41]} 21. axb4 {[%clk 0:02:24]}  g5 {[%clk 0:01:29]} 22. Ng2 {[%clk 0:02:21]}  b5 {[%clk 0:01:30]} 23. cxb5 {[%clk 0:01:56]}  Nb6 {[%clk 0:01:28]} 24. Qb3 {[%clk 0:01:55]}  Qd7 {[%clk 0:01:21]} 25. e4 {[%clk 0:01:53]}  Qxb5 {[%clk 0:01:19]} 26. Ne3 {[%clk 0:01:46]}  Bc8 {[%clk 0:01:17]} 27. Qc2 {[%clk 0:01:10]}  Rf7 {[%clk 0:01:02]} 28. Qd2 {[%clk 0:00:54]}  h6 {[%clk 0:00:57]} 29. Kg2 {[%clk 0:00:53]}  Ref8 {[%clk 0:00:55]} 30. Ba1 {[%clk 0:00:46]}  Bd7 {[%clk 0:00:40]} 31. h3 {[%clk 0:00:39]}  Nc4 {[%clk 0:00:36]} 32. Nxc4 {[%clk 0:00:38]}  Qxc4 {[%clk 0:00:37]} 33. Rc1 {[%clk 0:00:37]}  Qa6 {[%clk 0:00:37]} 34. Rf2 {[%clk 0:00:26]}  Qb6 {[%clk 0:00:34]} 35. Rc3 {[%clk 0:00:20]}  Kh7 {[%clk 0:00:32]} 36. Qc1 {[%clk 0:00:19]}  Bxh3+ {[%clk 0:00:29]} 37. Kxh3 {[%clk 0:00:10]}  Qxf2 {[%clk 0:00:29]} 38. Rxc7 {[%clk 0:00:11]}  Qxf3 {[%clk 0:00:28]} 39. Rxf7+ {[%clk 0:00:11]}  Rxf7 {[%clk 0:00:29]} 40. Qc8 {[%clk 0:00:03]}  Qh1+ {[%clk 0:00:27]} 41. Kg4 {[%clk 0:00:03]}  Qxe4+ {[%clk 0:00:27]} 42. Kh3 {[%clk 0:00:03]}  Qh1+ {[%clk 0:00:25]} 43. Kg4 {[%clk 0:00:03]}  Qf3+ {[%clk 0:00:25]} 44. Kh3 {[%clk 0:00:03]}  Qf5+ {[%clk 0:00:24]} 45. Qxf5+ {[%clk 0:00:02]}  Rxf5 {[%clk 0:00:25]} 46. b5 {[%clk 0:00:02]}  Rf7 {[%clk 0:00:24]} 47. Bb2 {[%clk 0:00:01]}  Rb7 {[%clk 0:00:24]} 48. Ba3 {[%clk 0:00:02]}  Rxb5 {[%clk 0:00:24]} 49. Bxd6 {[%clk 0:00:03]}  Rxd5 {[%clk 0:00:25]} 0-1


[Site "https://www.chess.com"]

[Event "Titled Tuesday Blitz September 27 Late 2022"]
[White "Bodnar, Nikolay"]
[Black "Pakleza, Zbigniew"]
[WhiteFideId "14106469"]
[BlackFideId "1119290"]
[WhiteElo "2283"]
[BlackElo "2411"]
[Result "0-1"]
[Round "05"]
[TimeControl "180+1"]
[Date "2022.09.28"]
[WhiteClock "0:00:06"]
[BlackClock "0:00:13"]

1. c4 {[%clk 0:03:00]}  c6 {[%clk 0:02:59]} 2. g3 {[%clk 0:03:01]}  d5 {[%clk 0:03:00]} 3. Bg2 {[%clk 0:03:01]}  Nf6 {[%clk 0:03:00]} 4. Nf3 {[%clk 0:03:02]}  Bf5 {[%clk 0:03:00]} 5. O-O {[%clk 0:03:02]}  e6 {[%clk 0:03:01]} 6. b3 {[%clk 0:03:02]}  Be7 {[%clk 0:03:01]} 7. Bb2 {[%clk 0:03:03]}  O-O {[%clk 0:03:01]} 8. d3 {[%clk 0:03:04]}  h6 {[%clk 0:03:02]} 9. Nbd2 {[%clk 0:03:04]}  a5 {[%clk 0:03:02]} 10. a3 {[%clk 0:03:04]}  Na6 {[%clk 0:02:59]} 11. Qc2 {[%clk 0:03:04]}  Bh7 {[%clk 0:02:59]} 12. Rad1 {[%clk 0:03:04]}  Ne8 {[%clk 0:02:57]} 13. Rfe1 {[%clk 0:03:04]}  Bf6 {[%clk 0:02:57]} 14. Ne5 {[%clk 0:03:00]}  Qc7 {[%clk 0:02:37]} 15. Ndf3 {[%clk 0:02:57]}  Nd6 {[%clk 0:02:36]} 16. Qc1 {[%clk 0:02:51]}  Rfd8 {[%clk 0:02:30]} 17. cxd5 {[%clk 0:02:26]}  exd5 {[%clk 0:02:26]} 18. d4 {[%clk 0:02:17]}  Re8 {[%clk 0:02:09]} 19. Nd3 {[%clk 0:02:14]}  Qb6 {[%clk 0:02:01]} 20. Nc5 {[%clk 0:02:08]}  Rad8 {[%clk 0:01:53]} 21. Nxa6 {[%clk 0:01:20]}  Qxa6 {[%clk 0:01:52]} 22. Ne5 {[%clk 0:01:20]}  Qb6 {[%clk 0:01:48]} 23. Qc3 {[%clk 0:01:15]}  Nb5 {[%clk 0:01:42]} 24. Qd2 {[%clk 0:01:00]}  Qa6 {[%clk 0:01:15]} 25. e3 {[%clk 0:00:47]}  Nd6 {[%clk 0:01:13]} 26. Nd3 {[%clk 0:00:39]}  b6 {[%clk 0:00:43]} 27. f3 {[%clk 0:00:25]}  a4 {[%clk 0:00:41]} 28. b4 {[%clk 0:00:12]}  Nc4 {[%clk 0:00:41]} 29. Qc1 {[%clk 0:00:12]}  Rd6 {[%clk 0:00:19]} 30. Bf1 {[%clk 0:00:10]}  Qc8 {[%clk 0:00:19]} 31. Nf4 {[%clk 0:00:10]}  b5 {[%clk 0:00:18]} 32. Bc3 {[%clk 0:00:02]}  Bg5 {[%clk 0:00:18]} 33. Bg2 {[%clk 0:00:02]}  Bf5 {[%clk 0:00:18]} 34. h4 {[%clk 0:00:02]}  Bf6 {[%clk 0:00:18]} 35. g4 {[%clk 0:00:02]}  Bh7 {[%clk 0:00:17]} 36. Re2 {[%clk 0:00:02]}  Bxh4 {[%clk 0:00:17]} 37. Kh2 {[%clk 0:00:01]}  Bg5 {[%clk 0:00:18]} 38. Nh3 {[%clk 0:00:02]}  Bxe3 {[%clk 0:00:17]} 39. Qc2 {[%clk 0:00:01]}  Bg5 {[%clk 0:00:16]} 40. Rxe8+ {[%clk 0:00:01]}  Qxe8 {[%clk 0:00:17]} 41. Qf2 {[%clk 0:00:01]}  Bf6 {[%clk 0:00:17]} 42. Re1 {[%clk 0:00:02]}  Re6 {[%clk 0:00:17]} 43. Rxe6 {[%clk 0:00:01]}  Qxe6 {[%clk 0:00:18]} 44. Be1 {[%clk 0:00:01]}  Qe3 {[%clk 0:00:18]} 45. Qg3 {[%clk 0:00:02]}  Bg6 {[%clk 0:00:16]} 46. Bf2 {[%clk 0:00:02]}  Qe8 {[%clk 0:00:15]} 47. Nf4 {[%clk 0:00:03]}  Nxa3 {[%clk 0:00:14]} 48. Nxg6 {[%clk 0:00:03]}  fxg6 {[%clk 0:00:15]} 49. f4 {[%clk 0:00:04]}  Nc4 {[%clk 0:00:15]} 50. g5 {[%clk 0:00:04]}  hxg5 {[%clk 0:00:14]} 51. fxg5 {[%clk 0:00:05]}  Be7 {[%clk 0:00:13]} 52. Bh3 {[%clk 0:00:06]}  Bd6 {[%clk 0:00:13]} 0-1


[Site "https://www.chess.com"]